fUST/lending_fUST_20250908
["ID","MTS","AMOUNT","RATE_DAILY","PERIOD"]
[384186251,1757286962650,300.0,0.00013597,2]
[384186256,1757287187751,293.8675097,0.00013598,2]
[384186267,1757287605758,1935.13648085,0.00013011,2]
[384186268,1757287608361,3907.0575651,0.00013011,2]
[384186269,1757287608393,442.64545974,0.00013011,2]
[384186270,1757287610913,483.78412021,0.00013011,2]
[384186272,1757287623082,500.0,0.0001269,2]
[384186273,1757287623146,300.0,0.00013597,2]
[384186278,1757287682603,300.0,0.00013597,2]
[384186279,1757287688421,3000.0,0.00010958,2]
[384186280,1757287692007,3000.0,0.00012328,2]
[384186282,1757287742719,300.0,0.00013597,2]
[384186288,1757287802367,300.0,0.00013597,2]
[384186289,1757287802402,300.0,0.00013597,2]
[384186290,1757287802435,300.0,0.00013597,2]
[384186291,1757287802610,300.0,0.00013597,2]
[384186292,1757287802923,300.0,0.00013597,2]
[384186293,1757287805824,1200.0,0.00013597,2]
[384186307,1757287832499,-485.27,0.00013598,2]
[384186341,1757287838637,-505.75395028,0.00013598,2]
[384186355,1757287843551,-2249.96256,0.00013598,2]
[384186372,1757287846554,-11705.29357364,0.00013598,2]
[384186373,1757287846564,-3240.98651028,0.00013696,2]
[384186374,1757287846651,-438.28170347,0.00013696,2]
[384186377,1757287912460,153.103016,0.00013413,2]
[384186378,1757287946126,173.85428569,0.00013596,2]
[384186387,1757288212933,758.85188116,0.00013011,2]
[384186388,1757288215119,3032.37211712,0.00013011,2]
[384186390,1757288347630,583.59387198,0.00013011,2]
[384186391,1757288350378,2332.04111245,0.00013011,2]
[384186921,1757288598855,152.12249997,0.00013596,2]
[384186922,1757288607887,5000.0,0.00028893,68]
[384186945,1757289032908,-754.83309806,0.00013599,2]
[384186966,1757289038759,-1951.57952701,0.00013599,2]
[384186967,1757289038769,-300.0,0.00013689,2]
[384186968,1757289038780,-1200.0,0.00013689,2]
[384186969,1757289038789,-500.0,0.0001369,2]
[384186970,1757289038799,-500.0,0.0001369,2]
[384186971,1757289038809,-500.0,0.0001369,2]
[384186972,1757289038818,-500.0,0.0001369,2]
[384186973,1757289038828,-334.06154521,0.00013695,2]
[384186974,1757289038839,-839.93845479,0.00013695,2]
[384186975,1757289038848,-16970.63844177,0.00013696,2]
[384186976,1757289038858,-2206.09842584,0.00013696,2]
[384187035,1757289041539,152.12249993,0.00013596,2]
[384187755,1757289116737,282.97528471,0.00013011,2]
[384187756,1757289119303,1130.76923772,0.00013011,2]
[384187762,1757289292255,166.28995024,0.00013545,2]
[384187768,1757289457051,152.12249993,0.00013597,2]
[384187780,1757289523211,208.02547189,0.00013545,2]
[384187782,1757289547931,271.97452811,0.00013545,2]
[384187785,1757289627342,152.12249993,0.00013597,2]
[384187786,1757289632391,200.0,0.00024275,120]
[384187789,1757289787549,152.12249993,0.00013597,2]
[384187790,1757289919018,34915.0,0.0001358,2]
[384187792,1757289940389,152.12249993,0.00013597,2]
[384187793,1757290026606,708.05018729,0.0001301,2]
[384187794,1757290029387,2829.3685484,0.0001301,2]
[384187796,1757290050430,3000.0,8.22e-05,2]
[384187797,1757290054017,3000.0,9.59e-05,2]
[384187798,1757290057625,3000.0,0.0001096,2]
[384187799,1757290061241,3000.0,0.0001233,2]
[384187800,1757290081050,152.12249993,0.00013597,2]
[384187801,1757290208214,152.12249993,0.00013597,2]
[384187836,1757290232001,-657.37500001,0.00013682,2]
[384187921,1757290237973,-276.86784839,0.00013682,2]
[384188092,1757290239587,310.8588,0.00027,120]
[384188159,1757290240172,-337.07364615,0.00013682,2]
[384195129,1757290316290,872.0610472,0.00013582,2]
[384195321,1757290318278,872.06104716,0.00013586,2]
[384195482,1757290320225,872.06104716,0.0001359,2]
[384195613,1757290322260,872.06104716,0.00013593,2]
[384195663,1757290323084,300.0,0.00013597,2]
[384195723,1757290324332,872.06104716,0.00013597,2]
[384196020,1757290327443,161.94303013,0.00013582,2]
[384196294,1757290330535,702.0,0.00013597,2]
[384196332,1757290330906,456.21,0.00012329,2]
[384197291,1757290341556,380.17,0.00012329,2]
[384198199,1757290352286,316.81,0.00012329,2]
[384198415,1757290354500,495.96019757,0.00013597,2]
[384198420,1757290354538,461.42229878,0.00013597,2]
[384198518,1757290355509,500.0,0.00013597,2]
[384198522,1757290355543,500.0,0.00013597,2]
[384198527,1757290355580,500.0,0.00013597,2]
[384198531,1757290355614,500.0,0.00013597,2]
[384198536,1757290355651,500.0,0.00013597,2]
[384198540,1757290355686,500.0,0.00013597,2]
[384198545,1757290355719,500.0,0.00013597,2]
[384198549,1757290355754,500.0,0.00013597,2]
[384198554,1757290355790,500.0,0.00013597,2]
[384198558,1757290355835,500.0,0.00013597,2]
[384198559,1757290355878,500.0,0.00013597,2]
[384198560,1757290355912,500.0,0.00013597,2]
[384198564,1757290355949,500.0,0.00013597,2]
[384198569,1757290355982,500.0,0.00013597,2]
[384198574,1757290356019,500.0,0.00013597,2]
[384198578,1757290356055,500.0,0.00013597,2]
[384198583,1757290356090,500.0,0.00013597,2]
[384198587,1757290356124,500.0,0.00013597,2]
[384198592,1757290356160,500.0,0.00013597,2]
[384198597,1757290356198,500.0,0.00013597,2]
[384198613,1757290356348,500.0,0.00013597,2]
[384198618,1757290356388,500.0,0.00013597,2]
[384198622,1757290356422,500.0,0.00013597,2]
[384198627,1757290356459,500.0,0.00013597,2]
[384198631,1757290356492,500.0,0.00013597,2]
[384198636,1757290356531,164.21328761,0.00013597,2]
[384198641,1757290356565,500.0,0.00013597,2]
[384198645,1757290356599,429.81487525,0.00013597,2]
[384198650,1757290356634,429.88603478,0.00013597,2]
[384198655,1757290356668,306.54553173,0.00013597,2]
[384198659,1757290356701,500.0,0.00013597,2]
[384198664,1757290356737,500.0,0.00013597,2]
[384198669,1757290356775,536.17603562,0.00013597,2]
[384198673,1757290356813,500.0,0.00013597,2]
[384198678,1757290356853,500.0,0.00013597,2]
[384198683,1757290356896,278.34388612,0.00013597,2]
[384198688,1757290356931,500.0,0.00013597,2]
[384198692,1757290356966,500.0,0.00013597,2]
[384198697,1757290357002,500.0,0.00013597,2]
[384198702,1757290357040,500.0,0.00013597,2]
[384198707,1757290357077,500.0,0.00013597,2]
[384198711,1757290357116,500.0,0.00013597,2]
[384198716,1757290357151,500.0,0.00013597,2]
[384198721,1757290357188,500.0,0.00013597,2]
[384198727,1757290357239,500.0,0.00013597,2]
[384198731,1757290357273,500.0,0.00013597,2]
[384198737,1757290357317,500.0,0.00013597,2]
[384198741,1757290357352,500.0,0.00013597,2]
[384198746,1757290357388,500.0,0.00013597,2]
[384198750,1757290357424,500.0,0.00013597,2]
[384198756,1757290357468,500.0,0.00013597,2]
[384198761,1757290357504,500.0,0.00013597,2]
[384198765,1757290357541,500.0,0.00013597,2]
[384198770,1757290357582,500.0,0.00013597,2]
[384198771,1757290357617,500.0,0.00013597,2]
[384198772,1757290357652,500.0,0.00013597,2]
[384198773,1757290357686,500.0,0.00013597,2]
[384198774,1757290357740,500.0,0.00013597,2]
[384198775,1757290357793,500.0,0.00013597,2]
[384198776,1757290357826,500.0,0.00013597,2]
[384198778,1757290357870,500.0,0.00013597,2]
[384198782,1757290357907,500.0,0.00013597,2]
[384198787,1757290357942,500.0,0.00013597,2]
[384198793,1757290357992,500.0,0.00013597,2]
[384199277,1757290363048,264.01,0.00012329,2]
[384199651,1757290366818,500.0,0.00013597,2]
[384199656,1757290366857,353.35382104,0.00013597,2]
[384199662,1757290366906,500.0,0.00013597,2]
[384199667,1757290366950,500.0,0.00013597,2]
[384199673,1757290366992,500.0,0.00013597,2]
[384199674,1757290367034,414.07486917,0.00013597,2]
[384199675,1757290367095,500.0,0.00013597,2]
[384199676,1757290367135,500.0,0.00013597,2]
[384199677,1757290367180,500.0,0.00013597,2]
[384199678,1757290367219,500.0,0.00013597,2]
[384199679,1757290367257,500.0,0.00013597,2]
[384199680,1757290367297,500.0,0.00013597,2]
[384199684,1757290367348,500.0,0.00013597,2]
[384199690,1757290367400,500.0,0.00013597,2]
[384199712,1757290367603,500.0,0.00013597,2]
[384199717,1757290367641,500.0,0.00013597,2]
[384199722,1757290367684,189.13400789,0.00013597,2]
[384199727,1757290367723,427.26193148,0.00013597,2]
[384199732,1757290367759,500.0,0.00013597,2]
[384199738,1757290367813,500.0,0.00013597,2]
[384199743,1757290367848,500.0,0.00013597,2]
[384199749,1757290367899,500.0,0.00013597,2]
[384199752,1757290367933,500.0,0.00013597,2]
[384199759,1757290367995,500.0,0.00013597,2]
[384199766,1757290368054,500.0,0.00013597,2]
[384199772,1757290368113,261.92025135,0.00013597,2]
[384199785,1757290368238,500.0,0.00013597,2]
[384199792,1757290368307,500.0,0.00013597,2]
[384199797,1757290368354,500.0,0.00013597,2]
[384199802,1757290368398,500.0,0.00013597,2]
[384199808,1757290368452,500.0,0.00013597,2]
[384199813,1757290368493,500.0,0.00013597,2]
[384199818,1757290368535,500.0,0.00013597,2]
[384199825,1757290368587,500.0,0.00013597,2]
[384199830,1757290368634,500.0,0.00013597,2]
[384199836,1757290368680,500.0,0.00013597,2]
[384199841,1757290368731,500.0,0.00013597,2]
[384199847,1757290368773,500.0,0.00013597,2]
[384199852,1757290368820,500.0,0.00013597,2]
[384199858,1757290368866,500.0,0.00013597,2]
[384199864,1757290368919,500.0,0.00013597,2]
[384199868,1757290368955,500.0,0.00013597,2]
[384199875,1757290369015,500.0,0.00013597,2]
[384199889,1757290369151,500.0,0.00013597,2]
[384199893,1757290369191,500.0,0.00013597,2]
[384199898,1757290369228,500.0,0.00013597,2]
[384199903,1757290369272,500.0,0.00013597,2]
[384199909,1757290369319,500.0,0.00013597,2]
[384199914,1757290369360,500.0,0.00013597,2]
[384199961,1757290369809,461.86642409,0.00013597,2]
[384199963,1757290369863,500.0,0.00013597,2]
[384200019,1757290370545,500.0,0.00013597,2]
[384200054,1757290370884,500.0,0.00013597,2]
[384200060,1757290370932,500.0,0.00013597,2]
[384200091,1757290371228,500.0,0.00013597,2]
[384200095,1757290371261,500.0,0.00013597,2]
[384200125,1757290371532,250.0,0.00013597,2]
[384200133,1757290371603,500.0,0.00013597,2]
[384200164,1757290371908,500.0,0.00013597,2]
[384200170,1757290371960,425.21157781,0.00013597,2]
[384200242,1757290372674,500.0,0.00013597,2]
[384200248,1757290372731,500.0,0.00013597,2]
[384200255,1757290372787,500.0,0.00013597,2]
[384200262,1757290372851,500.0,0.00013597,2]
[384200269,1757290372913,601.69356707,0.00013597,2]
[384200331,1757290373532,220.01,0.00012329,2]
[384201188,1757290382965,178.0,0.00013597,2]
[384201295,1757290384080,183.34,0.00012329,2]
[384201474,1757290386273,1804.27508338,0.00013598,2]
[384202251,1757290394642,152.78,0.00012329,2]
[384203199,1757290405026,763.95,0.00012329,2]
[384204995,1757290472450,161.94303011,0.00013582,2]
[384204997,1757290503519,1200.0,0.00013597,2]
[384204998,1757290607960,178.13733316,0.00013543,2]
[384205000,1757290677191,1202.85005558,0.00013598,2]
[384205003,1757290696792,205.92820234,0.00013597,2]
[384205004,1757290696832,500.0,0.00013597,2]
[384205005,1757290696867,572.91039268,0.00013597,2]
[384205006,1757290696901,551.14344833,0.00013597,2]
[384205007,1757290696937,174.57714434,0.00013597,2]
[384205008,1757290696972,198.14821864,0.00013597,2]
[384205009,1757290697010,500.0,0.00013597,2]
[384205010,1757290697045,192.26047874,0.00013597,2]
[384205011,1757290697087,500.0,0.00013597,2]
[384205012,1757290697123,500.0,0.00013597,2]
[384205013,1757290697160,500.0,0.00013597,2]
[384205014,1757290697208,500.0,0.00013597,2]
[384205015,1757290697246,500.0,0.00013597,2]
[384205016,1757290697283,500.0,0.00013597,2]
[384205017,1757290697320,500.0,0.00013597,2]
[384205018,1757290697358,500.0,0.00013597,2]
[384205019,1757290697399,500.0,0.00013597,2]
[384205020,1757290697438,500.0,0.00013597,2]
[384205021,1757290697490,500.0,0.00013597,2]
[384205022,1757290697531,500.0,0.00013597,2]
[384205023,1757290697574,416.60022593,0.00013597,2]
[384205024,1757290697621,500.0,0.00013597,2]
[384205025,1757290714563,500.0,0.00013597,2]
[384205026,1757290714608,500.0,0.00013597,2]
[384205027,1757290714646,500.0,0.00013597,2]
[384205028,1757290714684,500.0,0.00013597,2]
[384205029,1757290714722,500.0,0.00013597,2]
[384205030,1757290714763,500.0,0.00013597,2]
[384205031,1757290714800,440.77063008,0.00013597,2]
[384205032,1757290714843,500.0,0.00013597,2]
[384205033,1757290714882,452.17359542,0.00013597,2]
[384205034,1757290714921,500.0,0.00013597,2]
[384205035,1757290714960,500.0,0.00013597,2]
[384205036,1757290715006,500.0,0.00013597,2]
[384205037,1757290715044,500.0,0.00013597,2]
[384205038,1757290715085,500.0,0.00013597,2]
[384205039,1757290715133,500.0,0.00013597,2]
[384205040,1757290715173,500.0,0.00013597,2]
[384205041,1757290715211,500.0,0.00013597,2]
[384205042,1757290715249,500.0,0.00013597,2]
[384205043,1757290716689,500.0,0.00013597,2]
[384205046,1757290742819,300.0,0.00013597,2]
[384205048,1757290763337,151.06248278,0.00013543,2]
[384205051,1757290802552,1200.0,0.00013597,2]
[384205053,1757290929934,1200.0,0.00013597,2]
[384205054,1757290953965,151.06248277,0.00013543,2]
[384205055,1757290967089,801.90003706,0.00013598,2]
[384205058,1757291102462,868.0,0.00013597,2]
[384205059,1757291134216,151.06248277,0.00013543,2]
[384205067,1757291257539,534.6000247,0.00013598,2]
[384205068,1757291264936,151.0,0.000135,2]
[384205069,1757291265247,151.0,0.000131,2]
[384205070,1757291265581,151.0,0.000128,2]
[384205071,1757291265947,151.0,0.000124,2]
[384205072,1757291266270,151.0,0.000121,2]
[384205073,1757291291809,710.1661811,0.00013543,2]
[384205074,1757291293766,710.16618109,0.00013557,2]
[384205075,1757291295754,710.16618109,0.0001357,2]
[384205076,1757291297747,710.16618109,0.00013584,2]
[384205078,1757291299555,151.06248277,0.00013543,2]
[384205079,1757291299777,710.16618109,0.00013597,2]
[384205112,1757291432143,-37165.29672189,0.00013598,2]
[384205117,1757291432198,-868.312121,0.00013598,2]
[384205119,1757291432210,-49006.56248674,0.00013598,2]
[384205144,1757291438012,-14075.01987791,0.00013598,2]
[384205146,1757291438023,-534.94906441,0.00013598,2]
[384205148,1757291438034,-1372.13797745,0.00013598,2]
[384205149,1757291438046,-294.54076015,0.00013598,2]
[384205152,1757291438067,-424.90221812,0.00013598,2]
[384205394,1757291440410,-86510.92465092,0.00013598,2]
[384205406,1757291440918,-1088.77564619,0.00013598,2]
[384205415,1757291446205,-28154.6886,0.00013598,2]
[384205416,1757291459779,173.0344408,0.00013582,2]
[384205417,1757291508436,681.03568357,0.00013598,2]
[384205418,1757291523430,300.0,0.00013597,2]
[384205420,1757291542270,370.51,0.00012329,2]
[384205421,1757291547780,356.40001646,0.00013598,2]
[384205422,1757291552780,308.76,0.00012329,2]
[384205424,1757291563319,257.3,0.00012329,2]
[384205426,1757291573750,214.41,0.00012329,2]
[384205428,1757291584175,178.68,0.00012329,2]
[384205429,1757291594544,370000.0,0.00013498,2]
[384205430,1757291594634,893.42,0.00012329,2]
[384205431,1757291624108,568.13294488,0.00013596,2]
[384205432,1757291625226,173.03444075,0.00013582,2]
[384205433,1757291625963,568.13294488,0.00013597,2]
[384205434,1757291627958,568.13294488,0.00013597,2]
[384205435,1757291629983,568.13294488,0.00013598,2]
[384205436,1757291631986,568.13294488,0.00013598,2]
[384205438,1757291751080,320132.36779227,0.00013596,2]
[384205439,1757291785731,173.03444075,0.0001358,2]
[384205441,1757291794310,178.72343144,0.00028901,60]
[384205445,1757291931079,272.96986805,0.00013497,2]
[384205446,1757292005586,1200.0,0.00013595,2]
[384205450,1757292122020,238.84863457,0.00013497,2]
[384205454,1757292276691,1279.88442424,0.0001359,2]
[384205455,1757292278749,1279.88442424,0.00013592,2]
[384205456,1757292280658,1279.88442424,0.00013594,2]
[384205457,1757292310805,-543.03044018,0.00013596,2]
[384205458,1757292310860,-10000.01,0.00013596,2]
[384205459,1757292332299,857.45,0.00012329,2]
[384205461,1757292342481,208.99255524,0.00013095,2]
[384205462,1757292343347,879.67,0.00012329,2]
[384205465,1757292353806,816.39,0.00012329,2]
[384205466,1757292364263,680.33,0.00012329,2]
[384205467,1757292364907,208.99255524,0.00013095,2]
[384205468,1757292374701,644.44,0.00012329,2]
[384205469,1757292385124,537.03,0.00012329,2]
[384205470,1757292387522,208.99255524,0.00013095,2]
[384205471,1757292395605,447.52,0.00012329,2]
[384205472,1757292406008,372.94,0.00012329,2]
[384205473,1757292409687,208.99255524,0.00013095,2]
[384205474,1757292416462,310.78,0.00012329,2]
[384205475,1757292420366,-208.99255524,0.00013227,2]
[384205476,1757292420396,-208.99255524,0.00013361,2]
[384205477,1757292420427,-208.99255524,0.00013496,2]
[384205478,1757292420456,-998.91019413,0.00013595,2]
[384205479,1757292420485,-500.0,0.00013596,2]
[384205480,1757292420515,-500.0,0.00013596,2]
[384205481,1757292420546,-500.0,0.00013596,2]
[384205482,1757292420573,-500.0,0.00013596,2]
[384205483,1757292420602,-500.0,0.00013596,2]
[384205484,1757292420979,-5414.88469539,0.00013596,2]
[384205485,1757292421007,-10000.01,0.00013596,2]
[384205486,1757292421043,-10000.01,0.00013596,2]
[384205487,1757292421061,-10000.01,0.00013596,2]
[384205488,1757292421216,-3909.67707216,0.00013596,2]
[384205489,1757292421254,-2180.65585568,0.00013596,2]
[384205490,1757292421354,-10000.01,0.00013596,2]
[384205491,1757292427194,265.16,0.00012329,2]
[384205492,1757292430304,-2205.45321042,0.0001346,2]
[384205493,1757292434582,1578.64724321,0.0001346,2]
[384205494,1757292437678,220.96,0.00012329,2]
[384205495,1757292440288,-8200.40275679,0.00013596,2]
[384205496,1757292448300,362.91,0.00012329,2]
[384205497,1757292450401,-3134.27288207,0.00013596,2]
[384205498,1757292450423,-3731.46423586,0.00013596,2]
[384205499,1757292458783,302.42,0.00012329,2]
[384205500,1757292469485,252.02,0.00012329,2]
[384205501,1757292479921,210.01,0.00012329,2]
[384205502,1757292483783,160.0,0.000131,2]
[384205503,1757292487359,160.0,0.000131,2]
[384205504,1757292490475,175.01,0.00012329,2]
[384205505,1757292492109,160.0,0.000131,2]
[384205506,1757292500975,875.09,0.00012329,2]
[384205507,1757292507434,160.0,0.000273,120]
[384205508,1757292508261,160.0,0.000273,120]
[384205509,1757292512720,160.0,0.000273,120]
[384205510,1757292534590,160.0,0.000131,2]
[384205511,1757292548765,163.17549139,0.000131,2]
[384205512,1757292570421,-300.0,0.00013325,2]
[384205513,1757292570450,-300.0,0.0001346,2]
[384205514,1757292570479,-306.69981321,0.00013595,2]
[384205515,1757292575121,209.82620072,0.0001346,2]
[384205516,1757292605990,814.0,0.00013595,2]
[384205517,1757292612896,2559.76884848,0.00013497,2]
[384205552,1757292632391,-1478.6261924,0.00013596,2]
[384205558,1757292632444,-56635.07458409,0.00013596,2]
[384205664,1757292638366,-311886.29922351,0.00013596,2]
[384205667,1757292638377,-554.61637179,0.00013597,2]
[384205669,1757292638388,-567.52973631,0.00013598,2]
[384205671,1757292638400,-2513.89266331,0.00013598,2]
[384205673,1757292638411,-3533.0928616,0.00013604,2]
[384205675,1757292638421,-250.0,0.00013651,2]
[384205677,1757292638432,-6264.14714971,0.0001369,2]
[384205679,1757292638442,-151.0,0.00013693,2]
[384205681,1757292638452,-151.0,0.00013693,2]
[384205683,1757292638461,-151.0,0.00013693,2]
[384205685,1757292638472,-151.0,0.00013693,2]
[384205687,1757292638482,-151.0,0.00013693,2]
[384205689,1757292638491,-151.0,0.00013693,2]
[384205691,1757292638502,-500.0,0.00013695,2]
[384205693,1757292638511,-500.0,0.00013695,2]
[384205696,1757292638521,-500.0,0.00013695,2]
[384205698,1757292638531,-500.0,0.00013695,2]
[384205700,1757292638541,-230.03766332,0.00013695,2]
[384205702,1757292638550,-475.3715429,0.00013695,2]
[384205704,1757292638559,-329.27088524,0.00013695,2]
[384205705,1757292638569,-500.0,0.00013695,2]
[384205708,1757292638579,-380.5790642,0.00013695,2]
[384205709,1757292638590,-500.0,0.00013695,2]
[384205712,1757292638601,-500.0,0.00013695,2]
[384205714,1757292638611,-500.0,0.00013695,2]
[384205716,1757292638621,-500.0,0.00013695,2]
[384205718,1757292638631,-339.61617019,0.00013695,2]
[384205720,1757292638641,-500.0,0.00013695,2]
[384205722,1757292638651,-500.0,0.00013695,2]
[384205724,1757292638661,-500.0,0.00013695,2]
[384205726,1757292638671,-251.62972059,0.00013695,2]
[384205728,1757292638681,-500.0,0.00013695,2]
[384205730,1757292638691,-500.0,0.00013695,2]
[384205732,1757292638700,-500.0,0.00013695,2]
[384205734,1757292638710,-500.0,0.00013695,2]
[384205736,1757292638720,-500.0,0.00013695,2]
[384205738,1757292638729,-500.0,0.00013695,2]
[384205740,1757292638739,-500.0,0.00013695,2]
[384205742,1757292638748,-500.0,0.00013695,2]
[384205744,1757292638758,-500.0,0.00013695,2]
[384205746,1757292638767,-500.0,0.00013695,2]
[384205748,1757292638777,-500.0,0.00013695,2]
[384205750,1757292638787,-500.0,0.00013695,2]
[384205752,1757292638797,-500.0,0.00013695,2]
[384205754,1757292638807,-500.0,0.00013695,2]
[384205756,1757292638817,-500.0,0.00013695,2]
[384205758,1757292638827,-500.0,0.00013695,2]
[384205760,1757292638836,-500.0,0.00013695,2]
[384205762,1757292638846,-500.0,0.00013695,2]
[384205764,1757292638855,-500.0,0.00013695,2]
[384205766,1757292638865,-500.0,0.00013695,2]
[384205768,1757292638875,-500.0,0.00013695,2]
[384205770,1757292638886,-95385.7969845,0.00013696,2]
[384205772,1757292638896,-151.0,0.00013696,2]
[384205774,1757292638905,-151.0,0.00013696,2]
[384205776,1757292638915,-151.0,0.00013696,2]
[384205778,1757292638924,-151.0,0.00013696,2]
[384205780,1757292638934,-151.0,0.00013696,2]
[384205782,1757292638943,-151.0,0.00013696,2]
[384205783,1757292638953,-480.0,0.00013698,2]
[384205785,1757292638963,-503.59065188,0.00013698,2]
[384205788,1757292638977,-480.0,0.00013698,2]
[384205790,1757292638987,-480.0,0.00013698,2]
[384205792,1757292638996,-480.0,0.00013698,2]
[384205794,1757292639006,-480.0,0.00013698,2]
[384205796,1757292639015,-480.0,0.00013698,2]
[384205798,1757292639026,-480.0,0.00013698,2]
[384205800,1757292639035,-480.0,0.00013698,2]
[384205802,1757292639045,-480.0,0.00013698,2]
[384205804,1757292639055,-157.0,0.00013698,2]
[384205806,1757292639069,-480.0,0.00013698,2]
[384205808,1757292639080,-480.0,0.00013698,2]
[384205810,1757292639090,-480.0,0.00013698,2]
[384205812,1757292639100,-480.0,0.00013698,2]
[384205814,1757292639109,-477.86024346,0.00013698,2]
[384205816,1757292639120,-480.0,0.00013698,2]
[384205818,1757292639131,-480.0,0.00013698,2]
[384205820,1757292639143,-480.0,0.00013698,2]
[384205822,1757292639153,-456.10223806,0.00013698,2]
[384205824,1757292639163,-480.0,0.00013698,2]
[384205827,1757292639173,-480.0,0.00013698,2]
[384205828,1757292639183,-480.0,0.00013698,2]
[384205830,1757292639193,-305.12,0.00013698,2]
[384205832,1757292639202,-480.0,0.00013698,2]
[384205834,1757292639212,-480.0,0.00013698,2]
[384205836,1757292639222,-480.0,0.00013698,2]
[384205838,1757292639231,-480.0,0.00013698,2]
[384205840,1757292639241,-198.0,0.00013698,2]
[384205842,1757292639251,-151.0,0.00013698,2]
[384205844,1757292639261,-198.0,0.00013698,2]
[384205846,1757292639270,-151.0,0.00013698,2]
[384205848,1757292639280,-198.69974264,0.00013698,2]
[384205850,1757292639289,-151.0,0.00013698,2]
[384205852,1757292639299,-151.0,0.00013698,2]
[384205854,1757292639308,-151.0,0.00013698,2]
[384205856,1757292639318,-198.4,0.00013698,2]
[384205858,1757292639327,-157.0,0.00013698,2]
[384205860,1757292639337,-157.0,0.00013698,2]
[384205862,1757292639346,-157.0,0.00013698,2]
[384205864,1757292639356,-169.79034972,0.00013698,2]
[384205866,1757292639365,-480.0,0.00013698,2]
[384205868,1757292639375,-491.26,0.00013698,2]
[384205870,1757292639384,-477.02700611,0.00013698,2]
[384205872,1757292639393,-535.25,0.00013698,2]
[384205874,1757292639403,-594.26,0.00013698,2]
[384205876,1757292639412,-480.0,0.00013698,2]
[384205878,1757292639424,-480.0,0.00013698,2]
[384205880,1757292639434,-480.0,0.00013698,2]
[384205882,1757292639444,-480.0,0.00013698,2]
[384205884,1757292639454,-480.0,0.00013698,2]
[384205886,1757292639464,-480.0,0.00013698,2]
[384205888,1757292639474,-480.0,0.00013698,2]
[384205890,1757292639484,-480.0,0.00013698,2]
[384205892,1757292639494,-480.0,0.00013698,2]
[384205893,1757292639504,-513.69974634,0.00013698,2]
[384205896,1757292639514,-480.0,0.00013698,2]
[384205898,1757292639523,-480.0,0.00013698,2]
[384205899,1757292639534,-480.0,0.00013698,2]
[384205901,1757292639544,-480.0,0.00013698,2]
[384205903,1757292639553,-480.0,0.00013698,2]
[384205905,1757292639563,-480.0,0.00013698,2]